fUSD/lending_fUSD_20240318
["ID","MTS","AMOUNT","RATE_DAILY","PERIOD"]
[319448033,1710768640779,-5536.00394112,0.00020335,2]
[319448034,1710768640788,-10989.62,0.000205,2]
[319448035,1710768640797,-7135.78912173,0.000205,3]
[319448036,1710768640806,-404.26,0.00020563,2]
[319448037,1710768640815,-922.57,0.00020563,2]
[319448038,1710768640825,-1225.72787324,0.00020578,2]
[319448039,1710768640834,-19200.0,0.0002075,2]
[319448040,1710768640843,-161.38289287,0.00020789,2]
[319448041,1710768640852,-50814.0,0.00020795,2]
[319448042,1710768640862,-150.0,0.00020799,2]
[319448043,1710768640871,-20535.87975645,0.000208,7]
[319448044,1710768640884,-27378.76601086,0.000208,7]
[319448045,1710768640899,-5000.0,0.000208,7]
[319448065,1710768642773,-320.29551449,0.000208,7]
[319448066,1710768642792,-2216.08823463,0.000208,7]
[319448067,1710768642945,-325055.4087395,0.000208,7]
[319448068,1710768642960,-2954.30024649,0.000208,7]
[319448069,1710768642971,-11757.75118719,0.000208,7]
[319448070,1710768642982,-4781.51031039,0.000208,7]
[319448071,1710768642991,-4498.38250072,0.0002088,2]
[319448072,1710768643074,-6702.53996555,0.0002088,2]
[319448073,1710768643086,-5928.35723232,0.0002088,2]
[319448156,1710768646181,-285.5434642,0.00020799,2]
[319448158,1710768646191,-1493.55653578,0.0002088,2]
[319448161,1710768646207,-463.42556794,0.0002088,2]
[319448163,1710768646219,-127427.35081065,0.0002088,2]
[319448183,1710768646354,-6057.26337884,0.0002088,2]
[319448189,1710768646405,-0.21719635,0.0002088,2]
[319448191,1710768646423,-259827.87469789,0.0002088,2]
[319448197,1710768646471,-22142.13713773,0.0002088,2]
[319448204,1710768646531,-6798.8,0.0002088,2]
[319448206,1710768646542,-1452.451,0.0002088,2]
[319448232,1710768646802,-11011.53187767,0.0002088,2]
[319448237,1710768646837,-279.5,0.0002088,2]
[319448800,1710769444420,163.3317181,0.00013898,2]
[319448801,1710769453275,704.0976508,0.00013898,2]
[319448802,1710769453877,137.97459375,0.00013898,2]
[319448803,1710769453902,60.89229462,0.00013898,2]
[319448804,1710769459431,1939.10770538,0.00013898,2]
[319448805,1710769459469,260.17435698,0.00013898,2]
[319448806,1710769522268,670.0,0.00013898,2]
[319448807,1710769616532,548.0,0.0002201,30]
[319448820,1710769832406,-339.49342103,0.00013899,2]
[319448821,1710769832622,-1375.78397897,0.00013899,2]
[319448822,1710769832632,-1902.81232502,0.00014,2]
[319448823,1710769832646,-150.0,0.00014999,2]
[319448824,1710769832656,-2483.0,0.00015,2]
[319448825,1710769832666,-5688.52551369,0.00015,2]
[319448826,1710769832677,-1295.96630676,0.00015,2]
[319448827,1710769832689,-2357.29013975,0.00015,2]
[319448828,1710769832699,-704.0976508,0.00017243,2]
[319448829,1710769832709,-338.26,0.00017244,2]
[319448830,1710769832718,-150.0,0.00018164,2]
[319448831,1710769832728,-1465.99980728,0.000182,2]
[319448832,1710769832738,-5218.4076561,0.0001879,5]
[319448834,1710769832751,-6041.99265203,0.0001879,5]
[319448836,1710769832761,-4311.63101874,0.00019058,2]
[319448838,1710769832778,-812.6789016,0.00019058,2]
[319448839,1710769832795,-356.20014295,0.00019058,2]
[319448840,1710769832807,-3380.95,0.00019058,2]
[319448933,1710769838516,-500.0,0.00015,2]
[319448935,1710769838526,-2667.42993671,0.00019058,2]
[319448938,1710769838537,-1000.0,0.00019076,2]
[319448940,1710769838547,-158.1,0.00019178,2]
[319448941,1710769838556,-218.7,0.00019228,2]
[319448944,1710769838569,-250.0,0.00019234,2]
[319448945,1710769838580,-191.03,0.00019234,2]
[319448947,1710769838590,-250.0,0.00019306,2]
[319448948,1710769838600,-1000.0,0.00019331,2]
[319448949,1710769838610,-11216.884,0.0001936,2]
[319448950,1710769838620,-10944.118,0.00019377,2]
[319448951,1710769838629,-10873.135,0.00019406,2]
[319448952,1710769838639,-11101.297,0.00019448,2]
[319448953,1710769838655,-363.4667793,0.000195,2]
[319448954,1710769838665,-338.26,0.00019508,2]
[319448955,1710769838675,-250.21210707,0.00019989,2]
[319448956,1710769838685,-12475.13117813,0.00019999,2]
[319448957,1710769838694,-3040.27810605,0.0002,2]
[319448958,1710769838704,-354.6574,0.000204,2]
[319448959,1710769838713,-755.0,0.00020548,5]
[319448960,1710769838723,-250.42589148,0.00020591,2]
[319448961,1710769838732,-1096.84138,0.0002067,2]
[319448962,1710769838743,-180.83344926,0.0002067,2]
[319448963,1710769838753,-2165.1359,0.0002068,2]
[319448964,1710769838763,-810.76611814,0.0002068,2]
[319448965,1710769838776,-2654.73746015,0.0002068,2]
[319448966,1710769838789,-108.90015594,0.0002068,2]
[319448967,1710769838799,-1000.0,0.00020778,2]
[319448968,1710769838811,-453.94748335,0.00020778,2]
[319448969,1710769838832,-1147.75231665,0.00020778,2]
[319448970,1710769838843,-352.5,0.0002078,2]
[319448971,1710769838853,-57863.5971,0.0002078,2]
[319448972,1710769838862,-328.4144,0.0002078,2]
[319448973,1710769838871,-231.18733471,0.00020798,2]
[319448974,1710769838883,-155.14805121,0.00020799,2]
[319448975,1710769838900,-4435.62563128,0.00020799,2]
[319448976,1710769838910,-155.0,0.00020799,2]
[319448977,1710769838919,-2967.16995294,0.00020799,2]
[319448978,1710769838929,-50.03273296,0.00020799,2]
[319448979,1710769838941,-104.96726704,0.00020799,2]
[319448980,1710769838951,-200.20780693,0.00020799,2]
[319448981,1710769838961,-237.97081406,0.00020799,2]
[319448982,1710769838971,-559.38958846,0.00020799,2]
[319448983,1710769838980,-205.10166513,0.00020799,2]
[319448984,1710769838990,-1104.33492364,0.00020799,2]
[319448985,1710769839019,-16.19918707,0.00020799,2]
[319448986,1710769839029,-2342.21352072,0.00020799,2]
[319448987,1710769839038,-250.21210707,0.0002087,2]
[319448988,1710769839047,-155.68422392,0.00020876,2]
[319448989,1710769839057,-294.3504502,0.00020878,2]
[319448990,1710769839066,-363.3100795,0.00020878,2]
[319448991,1710769839077,-547.88346806,0.00020878,2]
[319448992,1710769839086,-3059.35363945,0.00020878,2]
[319448993,1710769839096,-339.49342103,0.00020878,2]
[319448994,1710769839105,-155.0,0.00020878,2]
[319448995,1710769839115,-444.77852355,0.00020878,2]
[319448996,1710769839124,-258.93611907,0.00020878,2]
[319448997,1710769839135,-4456.39879562,0.00020878,2]
[319448998,1710769839147,-452.01870967,0.00020878,2]
[319448999,1710769839157,-234.91084827,0.00020878,2]
[319449000,1710769839166,-272.30761929,0.00020878,2]
[319449001,1710769839175,-1212.09284244,0.00020878,2]
[319449002,1710769839185,-700.0,0.00020878,2]
[319449003,1710769839194,-342.85831977,0.00020878,2]
[319449004,1710769839203,-204.88114341,0.00020878,2]
[319449005,1710769839212,-4694.54352671,0.00020878,2]
[319449006,1710769839221,-3409.8,0.00020878,2]
[319449007,1710769839231,-479.78627903,0.00020878,2]
[319449008,1710769839240,-1779.90508867,0.00020878,2]
[319449009,1710769839250,-580.66596683,0.00020878,2]
[319449010,1710769839259,-183.11064757,0.00020878,2]
[319449011,1710769839268,-307.52787229,0.00020878,2]
[319449012,1710769839278,-276.36241339,0.00020878,2]
[319449013,1710769839287,-318.48916249,0.00020878,2]
[319449014,1710769839296,-2198.8119459,0.00020878,2]
[319449015,1710769839306,-658.74639374,0.00020879,2]
[319449016,1710769839315,-3483.33293511,0.00020879,2]
[319449017,1710769839324,-9549.43424184,0.0002088,2]
[319449066,1710769840087,-796.98249999,0.0002088,2]
[319449111,1710769840436,-963.58383335,0.0002088,2]
[319449117,1710769840460,-2230.36230977,0.0002088,2]
[319449120,1710769840478,-770.41219011,0.0002088,2]
[319449123,1710769840490,-2327.28768961,0.0002088,2]
[319449126,1710769840501,-2698.38428172,0.0002088,2]
[319449130,1710769840513,-601.84673457,0.0002088,2]
[319449134,1710769840529,-408.88,0.0002088,2]
[319449136,1710769840541,-9612.0,0.0002088,2]
[319449138,1710769840552,-2800.0,0.0002088,2]
[319449142,1710769840576,-2313.38908295,0.0002088,2]
[319449144,1710769840588,-1170.24,0.0002088,2]
[319449149,1710769840623,-106555.40683022,0.0002088,2]
[319449151,1710769840634,-155.0,0.0002088,2]
[319449153,1710769840648,-609.0921158,0.00020896,2]
[319449155,1710769840658,-199.06975874,0.000209,2]
[319449157,1710769840669,-5000.0,0.000209,2]
[319449159,1710769840679,-483.93554888,0.000209,2]
[319449161,1710769840690,-200.0,0.00020955,2]
[319449163,1710769840700,-1000.0,0.0002099,2]
[319449165,1710769840710,-180.0,0.00020994,2]
[319449167,1710769840720,-101727.2188368,0.00020996,2]
[319449219,1710769842860,-1491.35951617,0.00020996,2]
[319449220,1710769842934,-2332.05737193,0.00020996,2]
[319449221,1710769842946,-990.8697166,0.00020996,2]
[319449223,1710769842959,-1925.21176537,0.00020996,2]
[319449224,1710769843150,-2960.55499372,0.00020996,2]
[319449225,1710769843163,-4477.1566096,0.00020996,2]
[319449226,1710769843174,-3969.6615,0.00020996,2]
[319449227,1710769843186,-1940.7685,0.00020996,2]
[319449228,1710769843198,-673.26259,0.00020996,2]
[319449229,1710769843209,-5557.44378251,0.00020996,2]
[319449230,1710769843218,-1261.6993705,0.00020996,2]
[319449231,1710769843228,-528.5029802,0.00020996,2]
[319449232,1710769843237,-1246.5300588,0.00020996,2]
[319449233,1710769843247,-800.0,0.00020997,2]
[319449234,1710769843257,-1654.90804043,0.00020998,2]
[319449236,1710769843266,-442.47131204,0.00020998,2]
[319449238,1710769843276,-509.07235552,0.00020998,2]
[319449239,1710769843298,-860.37240805,0.00020998,2]
[319449240,1710769843318,-306.30670095,0.00020998,2]
[319449241,1710769843327,-357.69482547,0.00020999,10]
[319449243,1710769843339,-348.04079335,0.00020999,10]
[319449246,1710769843361,-270.688998,0.00020999,10]
[319449248,1710769843373,-1101.19274763,0.00020999,10]
[319449252,1710769843398,-15240.1056495,0.00020999,10]
[319449255,1710769843418,-582.73100968,0.00020999,10]
[319449355,1710769846945,-523.78386745,0.00015,2]
[319449358,1710769846971,-344.19178393,0.00015,2]
[319449359,1710769847113,-601.74169811,0.00015,2]
[319449360,1710769847239,-404.20345887,0.00015,2]
[319449361,1710769847272,-473.07919164,0.00015,2]
[319449362,1710769847289,-1552.29137066,0.00020879,2]
[319449363,1710769847302,-266.21199611,0.00020899,2]
[319449364,1710769847312,-510.92860017,0.000209,2]
[319449365,1710769847325,-4489.07139983,0.000209,2]
[319449366,1710769847336,-16958.75773751,0.00020999,10]
[319449367,1710769847370,-3520.07916805,0.00020999,10]
[319449368,1710769847391,-410.39452018,0.00020999,10]
[319449370,1710769858899,151.0,0.00013698,2]
[319449372,1710769907770,151.0,0.00013835,2]
[319449376,1710770073465,475.0362242,0.000137,2]
[319449377,1710770184282,238.5748,0.000138,2]
[319449378,1710770335488,-3216.96336078,0.00013899,2]
[319449379,1710770335511,-66746.03663922,0.000139,2]
[319449380,1710770504021,1265.0,0.00014,20]
[319449381,1710770748149,54.21461882,0.00013898,2]
[319449382,1710770748174,2071.09,0.00013898,2]
[319449383,1710770961220,-155.0,0.00012675,2]
[319449384,1710770961243,-251.9156,0.00012676,2]
[319449393,1710771031981,-94.8244,0.00012676,2]
[319449394,1710771031992,-150.0,0.00013483,2]
[319449395,1710771032002,-186.67568048,0.00013491,2]
[319449396,1710771032015,-30.52431952,0.00013491,2]
[319449397,1710771032025,-233.27,0.00013699,2]
[319449398,1710771032035,-769.9624059,0.00013898,2]
[319449399,1710771032045,-8626.64327458,0.000139,2]
[319449400,1710771032057,-415.56500005,0.000139,2]
[319449401,1710771032082,-10781.55562641,0.000139,2]
[319449402,1710771032094,-33794.0,0.000139,2]
[319449403,1710771032119,-18257.37085639,0.000139,2]
[319449404,1710771032138,-6738.3,0.000139,2]
[319449405,1710771032246,-467.6799997,0.000139,2]
[319449430,1710771039041,-58987.08692639,0.000139,2]
[319449431,1710771039055,-1000.38918893,0.000139,2]
[319449432,1710771039070,-155.81841406,0.00013908,2]
[319449433,1710771039084,-264.5992861,0.00013908,2]
[319449434,1710771039098,-171.04031856,0.00013908,2]
[319449435,1710771039112,-19235.0547193,0.00013908,2]
[319449436,1710771039130,-199.06975874,0.00013911,2]
[319449437,1710771039144,-2895.26702469,0.00013912,2]
[319449438,1710771039159,-2895.26702469,0.00013926,2]
[319449439,1710771039175,-2895.26702469,0.00013939,2]
[319449440,1710771039190,-2895.26702469,0.00013953,2]
[319449441,1710771039206,-499.99,0.00013953,2]
[319449442,1710771039221,-2895.26702469,0.00013967,2]
[319449443,1710771039236,-2895.26702469,0.00013981,2]
[319449444,1710771039250,-2895.26702469,0.00013994,2]
[319449445,1710771039266,-1238.09469289,0.00013998,2]
[319449446,1710771039281,-261.86121602,0.00013998,2]
[319449447,1710771039296,-309.54761087,0.00013998,2]
[319449448,1710771039310,-2064.88913481,0.00013999,2]
[319449449,1710771039326,-30879.43733043,0.00013999,2]
[319449450,1710771039341,-52950.92531087,0.00013999,10]
[319449451,1710771039356,-202.93277978,0.00014,3]
[319449452,1710771039372,-28259377.25543552,0.00014,2]
[319449453,1710771039414,-2992.01931999,0.00014,2]
[319449454,1710771039433,-270000.0,0.00014,2]
[319449455,1710771039457,-17173.3924896,0.00014,2]
[319449456,1710771039488,-23245.84115879,0.00014,2]
[319449457,1710771039507,-33718.59255482,0.00014,2]
[319449458,1710771039558,-13345.54107391,0.00014,2]
[319449462,1710771040360,-452.24020111,0.00013,2]
[319449463,1710771040371,-47.75979889,0.00013,2]
[319449464,1710771040383,-360.48578347,0.00014,2]
[319449466,1710771040398,-5610.39032302,0.00014,2]
[319449471,1710771040435,-179423.58817877,0.00014,2]
[319449473,1710771040445,-2895.26702469,0.00014008,2]
[319449475,1710771040454,-2895.26702469,0.00014022,2]
[319449477,1710771040463,-467.46,0.00014104,2]
[319449479,1710771040473,-52964.76301942,0.0001488,2]
[319449491,1710771043026,-29678.97696524,0.0001488,2]
[319449492,1710771043038,-3854.76365584,0.0001488,2]
[319449493,1710771043050,-5960.77298953,0.0001488,2]
[319449494,1710771043101,-6046.47,0.0001488,2]
[319449496,1710771043254,-1035.0,0.0001488,2]
[319449497,1710771043266,-4469.19390864,0.0001488,2]
[319449498,1710771043279,-11972.72962165,0.0001488,2]
[319449505,1710771045954,-170.98074956,0.00014879,2]
[319449507,1710771045963,-469.81506807,0.0001488,2]
[319449509,1710771045975,-3381.48353745,0.0001488,2]
[319449514,1710771046013,-1343.02161483,0.0001488,2]
[319449519,1710771046073,-5438.00001,0.0001488,2]
[319449520,1710771046084,-710.59836001,0.0001488,2]
[319449521,1710771046140,-306.73955658,0.0001488,2]
[319449522,1710771046154,-470.55416172,0.0001488,2]
[319449523,1710771046311,-10896.02148116,0.0001488,2]
[319449525,1710771249396,-151.0,0.00013698,2]
[319449526,1710771249416,-155.0,0.00014878,2]
[319449527,1710771249437,-551.0,0.00014878,2]
[319449528,1710771249457,-145.0,0.00014879,2]
[319449529,1710771254986,-86.18733471,0.00014879,2]
[319449530,1710771255006,-155.0,0.00014879,2]
[319449531,1710771255026,-1758.81266529,0.0001488,2]
[319449532,1710771255786,-2000.0,0.0001488,2]
[319449533,1710771256769,-2000.0,0.0001488,2]
[319449534,1710771257695,-2000.0,0.0001488,2]
[319449538,1710771930324,-155.0,0.00013834,2]
[319449539,1710771930345,-151.0,0.00013835,2]
[319449540,1710771930370,-1011.2214637,0.00014779,2]
[319449541,1710772027127,-321.7727427,0.00014779,2]
[319449542,1710772165131,-550.31330295,0.00014779,2]
[319449543,1710772165152,-486.8611,0.0001478,2]
[319449544,1710772165172,-223.12832508,0.00014878,2]
[319449545,1710772165193,-3299.45955579,0.00014879,2]
[319449546,1710772165214,-2427.47371618,0.0001488,2]
[319449555,1710772232296,-378.26559418,0.0001473,2]
[319449556,1710772232309,-2163.17826014,0.0001473,2]
[319449558,1710772233692,-91.64597568,0.0001473,2]
[319449559,1710772233707,-9283.53857861,0.0001488,2]
[319449560,1710772233725,-552.51522688,0.0001488,2]
[319449561,1710772233743,-3190.66212626,0.0001488,2]
[319449562,1710772233855,-1808.28435,0.0001488,2]
[319449563,1710772233896,-26119.90233657,0.0001488,2]
[319449578,1710772238205,-4038.65337472,0.0001488,2]
[319449579,1710772238269,-439.39728683,0.0001488,2]
[319449580,1710772238281,-360.0,0.0001488,2]
[319449581,1710772238294,-1298.46124008,0.0001488,2]
[319449582,1710772238306,-61772.31086024,0.0001488,2]
[319449583,1710772238341,-1169.6,0.0001488,2]
[319449602,1710772240202,-677.76,0.00014879,2]
[319449603,1710772240214,-552.67629212,0.00014879,2]
[319449604,1710772240224,-644.00445059,0.00014879,2]
[319449613,1710772240300,-8.86676664,0.00014879,2]
[319449615,1710772240310,-297.91323333,0.0001488,2]
[319449617,1710772240325,-1349.03656477,0.0001488,2]
[319449620,1710772240337,-427.24907895,0.0001488,2]
[319449622,1710772240349,-2898.93652626,0.0001488,2]
[319449624,1710772240364,-1214.79818361,0.0001488,2]
[319449628,1710772240392,-12436.03275301,0.0001488,2]
[319449630,1710772240402,-3548.43126791,0.00015,2]
[319449633,1710772240412,-14046.83614553,0.00015,2]
[319449635,1710772240422,-1619.83280355,0.00015,2]
[319449637,1710772240432,-731.0,0.00015,2]
[319449638,1710772240441,-1400.82641881,0.00015,2]
[319449641,1710772240451,-1371.2825479,0.00015107,2]
[319449642,1710772240461,-1372.37703187,0.00015133,2]
[319449644,1710772240470,-151.0,0.00015342,2]
[319449646,1710772240483,-150.0,0.0001573,2]
[319449648,1710772240493,-4006.58,0.0001573,2]
[319449650,1710772240502,-337.54,0.00015844,2]
[319449653,1710772240511,-150.99,0.00016511,2]
[319449655,1710772240523,-150.99,0.00016511,2]
[319449657,1710772240534,-151.0,0.00016849,2]
[319449659,1710772240544,-208.74,0.00016885,2]
[319449661,1710772240554,-750.0,0.00017,3]
[319449663,1710772240564,-2633.08983,0.0001723,2]
[319449665,1710772240573,-298.37,0.00017707,2]
[319449667,1710772240583,-2000.0,0.0001771,2]
[319449669,1710772240592,-919.01,0.0001771,2]
[319449671,1710772240602,-347.93,0.00017713,2]
[319449672,1710772240614,-250.0,0.00017715,2]
[319449675,1710772240624,-4885.84,0.00017739,2]
[319449677,1710772240634,-307.62,0.00017755,2]
[319449679,1710772240643,-200.0,0.00017763,2]
[319449681,1710772240653,-175.73,0.00017768,2]
[319449683,1710772240662,-658.98,0.00017831,2]
[319449685,1710772240671,-250.0,0.00017846,2]
[319449687,1710772240681,-5497.41503464,0.0001788,2]
[319449688,1710772240690,-166.33,0.00017896,2]
[319449690,1710772240699,-150.0,0.00017977,2]
[319449692,1710772240708,-3263.80415675,0.00018,2]
[319449693,1710772240721,-804.29,0.00018,2]
[319449694,1710772240745,-657.84249198,0.00018,2]
[319449695,1710772240778,-274.06335127,0.00018,2]
[319449696,1710772240788,-169.11,0.00018014,2]
[319449697,1710772240798,-337.54,0.00018108,2]
[319449698,1710772240808,-811.0,0.00018145,2]
[319449699,1710772240818,-1342.135,0.00018158,2]
[319449700,1710772240827,-532.938,0.00018158,2]
[319449701,1710772240837,-150.22,0.0001818,2]
[319449702,1710772240847,-284.89164876,0.000182,2]
[319449722,1710772243177,-1180.90134719,0.000182,2]
[319449724,1710772243187,-166.22,0.00018247,2]
[319449726,1710772243196,-8467.96,0.0001828,2]
[319449728,1710772243206,-800.0,0.00018288,2]
[319449729,1710772243215,-151.0,0.00018356,2]
[319449730,1710772243225,-746.33665963,0.0001861,2]
[319449731,1710772243234,-166.33,0.00018829,2]
[319449732,1710772243243,-20864.67289674,0.000189,2]
[319449733,1710772243252,-800.0,0.00019,3]
[319449734,1710772243262,-500.0,0.00019178,2]
[319449735,1710772243271,-500.0,0.00019178,2]
[319449736,1710772243280,-158.1,0.00019178,2]
[319449737,1710772243289,-12475.13117813,0.000195,2]
[319449738,1710772243298,-2006.57851011,0.000195,2]
[319449739,1710772243307,-150.66,0.00019534,2]
[319449740,1710772243316,-150.0,0.00019534,2]
[319449741,1710772243325,-693.56,0.00019534,2]
[319449742,1710772243334,-180.0,0.00019539,2]
[319449743,1710772243343,-2633.08984,0.0001973,2]
[319449744,1710772243353,-151.0,0.00019863,2]
[319449745,1710772243364,-200.0,0.00019983,2]
[319449746,1710772243373,-3000.0,0.0002,2]
[319449747,1710772243382,-10697.96,0.0002,2]
[319449748,1710772243391,-775.4995682,0.0002,2]
[319449749,1710772243403,-365.0,0.0002,2]
[319449750,1710772243426,-514.40847223,0.0002,2]
[319449751,1710772243435,-442.47131204,0.0002,2]
[319449752,1710772243444,-757.44510819,0.0002,3]
[319449753,1710772243454,-922.57,0.00020082,2]
[319449754,1710772243463,-922.57,0.00020082,2]
[319449755,1710772243473,-150.0,0.00020224,2]
[319449756,1710772243483,-157.32507678,0.00020327,2]
[319449757,1710772243495,-157.32507678,0.00020327,2]
[319449758,1710772243505,-157.32507684,0.00020327,2]
[319449759,1710772243514,-337.54,0.00020372,2]
[319449760,1710772243524,-500.0,0.00020423,2]
[319449761,1710772243533,-307.62,0.00020495,2]
[319449762,1710772243543,-1558.28435,0.00020544,2]
[319449763,1710772243552,-2967.16995294,0.00020544,2]
[319449764,1710772243562,-155.14805121,0.00020544,2]
[319449765,1710772243572,-800.0,0.00020574,2]
[319449766,1710772243582,-617.49788098,0.00020679,2]
[319449767,1710772243591,-192017.38591178,0.00020685,2]
[319449768,1710772243603,-1214.43758208,0.00020685,2]
[319449769,1710772243631,-4082.79175482,0.00020685,2]
[319449771,1710772243642,-2896.0523601,0.00020685,2]
[319449792,1710772244312,-24669.90919199,0.00020685,2]
[319449793,1710772244321,-12083.54600808,0.00020777,2]
[319449794,1710772244331,-1344.0,0.000208,2]
[319449795,1710772244340,-200.0,0.0002083,2]
[319449796,1710772244349,-800.0,0.0002083,2]
[319449797,1710772244360,-200.0,0.0002083,2]
[319449798,1710772244369,-500.0,0.0002083,2]
[319449799,1710772244378,-800.0,0.0002083,2]
[319449800,1710772244387,-200.0,0.0002083,2]
[319449801,1710772244396,-146.60279231,0.00020831,2]
[319449802,1710772244408,-56.45180269,0.00020831,2]
[319449803,1710772244418,-800.0,0.00020831,2]
[319449804,1710772244428,-200.0,0.00020831,2]
[319449805,1710772244437,-200.0,0.00020831,2]
[319449806,1710772244446,-200.0,0.00020831,2]
[319449807,1710772244456,-800.0,0.00020831,2]
[319449808,1710772244465,-800.0,0.00020831,2]
[319449809,1710772244474,-800.0,0.00020831,2]
[319449810,1710772244487,-200.0,0.00020831,2]
[319449811,1710772244497,-200.0,0.00020831,2]
[319449812,1710772244507,-200.0,0.00020831,2]
[319449813,1710772244516,-200.0,0.00020831,2]
[319449814,1710772244526,-500.0,0.00020831,2]
[319449815,1710772244535,-200.0,0.00020831,2]
[319449816,1710772244544,-451.67317902,0.00020896,2]
[319449817,1710772244554,-294.88893423,0.000209,2]
[319449818,1710772244566,-2977.10456541,0.000209,2]
[319449819,1710772244576,-170.2062397,0.000209,2]
[319449820,1710772244584,-4674.07626969,0.000209,2]
[319449821,1710772244596,-325.92373031,0.000209,2]
[319449822,1710772244607,-3955.35392307,0.00020996,2]
[319449823,1710772244618,-604.38611582,0.00020996,2]
[319449824,1710772244630,-9171.32495064,0.00020996,2]
[319449825,1710772244638,-5646.0341488,0.00020996,2]
[319449826,1710772244648,-31733.850838,0.00020996,2]
[319449827,1710772244657,-6119.1994124,0.00020996,2]
[319449828,1710772244666,-367.8044798,0.00020996,2]
[319449829,1710772244675,-14388.74617037,0.00020996,2]
[319449830,1710772244692,-1365.89104,0.00020996,2]
[319449831,1710772244712,-3596.7352,0.00020996,2]
[319449832,1710772244724,-1665.79314186,0.00020996,2]
[319449833,1710772244734,-394.2916648,0.00020996,2]
[319449834,1710772244768,-680.73902884,0.00020996,2]
[319449839,1710772246239,-17529.90004363,0.00020996,2]
[319449840,1710772246248,-1762.0228981,0.00020996,2]
[319449841,1710772246257,-460.3420804,0.00020996,2]
[319449842,1710772246267,-2000.0,0.00020997,2]
[319449843,1710772246277,-509.07235552,0.00020997,2]
[319449844,1710772246286,-1000.0,0.00020997,2]
[319449845,1710772246295,-779.0,0.00021,2]
[319449846,1710772246304,-36560.26782942,0.00021,3]
[319449847,1710772246316,-13106.97851784,0.00021,3]
[319449848,1710772246331,-13527.989,0.00021,3]
[319449849,1710772246391,-2037.18162,0.00021,3]
[319449850,1710772246403,-203488.00000019,0.00021,3]
[319449851,1710772246423,-1170.84249895,0.00021,3]
[319449852,1710772246565,-17222.7332164,0.00021,3]
[319449900,1710773432369,-440.69724842,0.0001381,2]
[319449901,1710773432379,-171.02983029,0.00013811,2]
[319449902,1710773432388,-522.49986849,0.00013811,2]
[319449903,1710773432397,-159.0,0.00013835,2]
[319449904,1710773432407,-154.0,0.00013835,2]
[319449905,1710773432416,-153.0,0.00013835,2]
[319449906,1710773432425,-375.66773782,0.00015,2]
[319449907,1710773432437,-677.45377569,0.00015,2]
[319449908,1710773432448,-291.0507058,0.00015,2]
[319449909,1710773432460,-768.82778069,0.00015,2]
[319449910,1710773432469,-153.0,0.00015342,2]
[319449911,1710773432479,-294.67,0.00016755,2]
[319449912,1710773432488,-153.0,0.00016849,2]
[319449913,1710773432497,-150.0,0.00017999,2]
[319449914,1710773432506,-2159.2429269,0.00018,2]
[319449917,1710773432916,-2840.7570731,0.00018,2]
[319449919,1710773432926,-842.58,0.00018215,2]
[319449921,1710773432936,-299.99,0.00018219,4]
[319449923,1710773432948,-499.99,0.00018219,2]
[319449925,1710773432959,-8376.22140932,0.00018221,2]
[319449927,1710773432972,-2511.68459068,0.00018221,2]
[319449929,1710773432984,-373.51296241,0.00018268,2]
[319449930,1710773433042,-58.48703759,0.00018268,2]
[319449931,1710773433052,-1250.0,0.00018268,2]
[319449932,1710773433065,-153.0,0.00018356,2]
[319449933,1710773433079,-150.0,0.00018535,2]
[319449934,1710773433090,-296.46,0.00018568,2]
[319449935,1710773433101,-500.0,0.00018591,2]
[319449936,1710773433112,-250.0,0.0001861,2]
[319449937,1710773433123,-487.53,0.00018611,2]
[319449938,1710773433134,-250.0,0.00018623,2]
[319449939,1710773433146,-289.61,0.00018623,2]
[319449940,1710773433157,-294.67,0.00019018,2]
[319449941,1710773433167,-640.72938583,0.00019079,2]
[319449942,1710773433183,-239.27061417,0.00019079,2]
[319449943,1710773433195,-158.1,0.00019178,2]
[319449944,1710773433206,-500.0,0.00019178,2]